{"text_format":"3","workbook":"xlsx","n_sheets":2,"sheets":["Pārtikas iepirkumu saraksts","aprēķini"],"not_rendered":{"defined_names":4},"read":"whole","date_system":"1900"}

{"sheet":"Pārtikas iepirkumu saraksts","index":0,"n_rows":21,"n_cols":13,"rows_kept":21,"merged":[[0,1,0,11],[0,12,1,12],[1,1,1,11],[4,12,5,12],[7,12,8,12],[10,12,11,12],[13,12,14,12]]}
[{"$nulls":12},{"$f":"aprēķini!M9","v":"PIENA PRODUKTI KOPĀ"}]
[null," Pārtikas preču iepirkumu saraksts"]
[null,null,"Pabeigts","PRECE","VEIKALS","KATEGORIJA","DAUDZ.","VIENĪBA","VIENĪBAS CENA","KOPĀ","KOMENTĀRS",null,{"$f":"aprēķini!L9","v":37}]
[null,null,1,"Apelsīni","Pārtikas preces","Produkti",2,"kg",{"v":2.99,"d":"2.99 EUR"},{"$f":"IFERROR(Saraksts[DAUDZ.]*Saraksts[VIENĪBAS CENA],\"\")","v":{"v":5.98,"d":"5.98 EUR"}},null,null,{"$f":"aprēķini!M8","v":"PRODUKTI KOPĀ"}]
[{"$nulls":3},"Āboli","Dārzs","Produkti",3,"kg",{"v":1.99,"d":"1.99 EUR"},{"$f":"IFERROR(Saraksts[DAUDZ.]*Saraksts[VIENĪBAS CENA],\"\")","v":{"v":5.97,"d":"5.97 EUR"}},"Ir kupons",null,{"$f":"aprēķini!L8","v":45}]
[{"$nulls":3},"Banāni","Pārtikas preces","Produkti",1,"saišķis",{"v":3.99,"d":"3.99 EUR"},{"$f":"IFERROR(Saraksts[DAUDZ.]*Saraksts[VIENĪBAS CENA],\"\")","v":{"v":3.99,"d":"3.99 EUR"}}]
[{"$nulls":3},"Salāti","Tirgus","Produkti",2,"galviņa",{"v":2.29,"d":"2.29 EUR"},{"$f":"IFERROR(Saraksts[DAUDZ.]*Saraksts[VIENĪBAS CENA],\"\")","v":{"v":4.58,"d":"4.58 EUR"}},null,null,{"$f":"aprēķini!M7","v":"GAĻA KOPĀ"}]
[{"$nulls":3},"Tomāti","Tirgus","Produkti",4,"kg",{"v":3.49,"d":"3.49 EUR"},{"$f":"IFERROR(Saraksts[DAUDZ.]*Saraksts[VIENĪBAS CENA],\"\")","v":{"v":13.96,"d":"13.96 EUR"}},null,null,{"$f":"aprēķini!L7","v":80}]
[{"$nulls":3},"Ķirbji","Tirgus","Produkti",2,"gab.",{"v":1.5,"d":"1.50 EUR"},{"$f":"IFERROR(Saraksts[DAUDZ.]*Saraksts[VIENĪBAS CENA],\"\")","v":{"v":3,"d":"3.00 EUR"}}]
[{"$nulls":3},"Selerijas","Pārtikas preces","Produkti",2,"saišķis",{"v":1.99,"d":"1.99 EUR"},{"$f":"IFERROR(Saraksts[DAUDZ.]*Saraksts[VIENĪBAS CENA],\"\")","v":{"v":3.98,"d":"3.98 EUR"}},null,null,{"$f":"aprēķini!M6","v":"JŪRAS VELTES KOPĀ"}]
[{"$nulls":3},"Gurķi","Tirgus","Produkti",1,"kg",{"v":2.29,"d":"2.29 EUR"},{"$f":"IFERROR(Saraksts[DAUDZ.]*Saraksts[VIENĪBAS CENA],\"\")","v":{"v":2.29,"d":"2.29 EUR"}},null,null,{"$f":"aprēķini!L6","v":109}]
[{"$nulls":3},"Sēnes","Pārtikas preces","Produkti",0.5,"kg",{"v":2.25,"d":"2.25 EUR"},{"$f":"IFERROR(Saraksts[DAUDZ.]*Saraksts[VIENĪBAS CENA],\"\")","v":{"v":1.125,"d":"1.13 EUR"}},"Lielās portobello"]
[{"$nulls":3},"Piens ","Piegāde mājās","Piena produkti",2,"litri",{"v":3.99,"d":"3.99 EUR"},{"$f":"IFERROR(Saraksts[DAUDZ.]*Saraksts[VIENĪBAS CENA],\"\")","v":{"v":7.98,"d":"7.98 EUR"}},null,null,{"$f":"aprēķini!M3","v":"CITI KOPĀ"}]
[{"$nulls":3},"Siers","Piegāde mājās","Piena produkti",1,"kg",{"v":9.99,"d":"9.99 EUR"},{"$f":"IFERROR(Saraksts[DAUDZ.]*Saraksts[VIENĪBAS CENA],\"\")","v":{"v":9.99,"d":"9.99 EUR"}},"Dažādu izmēru siers",null,{"$f":"aprēķini!L3","v":0}]
[{"$nulls":3},"Olas","Piegāde mājās","Piena produkti",2,"skaits",{"v":3.5,"d":"3.50 EUR"},{"$f":"IFERROR(Saraksts[DAUDZ.]*Saraksts[VIENĪBAS CENA],\"\")","v":{"v":7,"d":"7.00 EUR"}}]
[{"$nulls":3},"Biezpiens","Piegāde mājās","Piena produkti",1,"500 grami",{"v":3.89,"d":"3.89 EUR"},{"$f":"IFERROR(Saraksts[DAUDZ.]*Saraksts[VIENĪBAS CENA],\"\")","v":{"v":3.89,"d":"3.89 EUR"}},null,null,{"$f":"aprēķini!M4","v":"PĀRTIKAS PRECES KOPĀ"}]
[{"$nulls":3},"Skābais krējums","Piegāde mājās","Piena produkti",1,"250 grami",{"v":2.99,"d":"2.99 EUR"},{"$f":"IFERROR(Saraksts[DAUDZ.]*Saraksts[VIENĪBAS CENA],\"\")","v":{"v":2.99,"d":"2.99 EUR"}},null,null,{"$f":"Pārtikas_preču_kopsumma","v":271}]
[{"$nulls":3},"Jogurts","Pārtikas preces","Piena produkti",1,"500 grami",{"v":4.99,"d":"4.99 EUR"},{"$f":"IFERROR(Saraksts[DAUDZ.]*Saraksts[VIENĪBAS CENA],\"\")","v":{"v":4.99,"d":"4.99 EUR"}},"Grieķu ar medu"]
[{"$nulls":3},"Liellopu gaļa","Tirgus","Gaļa",10,"kg",{"v":7.99,"d":"7.99 EUR"},{"$f":"IFERROR(Saraksts[DAUDZ.]*Saraksts[VIENĪBAS CENA],\"\")","v":{"v":79.9,"d":"79.90 EUR"}},"Šķiņķa šķēlēs ietītas filejas"]
[{"$nulls":3},"Atlantijas lasis","Zivju tirgus","Jūras veltes",6,"kg",{"v":8.99,"d":"8.99 EUR"},{"$f":"IFERROR(Saraksts[DAUDZ.]*Saraksts[VIENĪBAS CENA],\"\")","v":{"v":53.94,"d":"53.94 EUR"}}]
[{"$nulls":3},"Aļaskas krabju spīles","Zivju tirgus","Jūras veltes",5,"kg",{"v":10.99,"d":"10.99 EUR"},{"$f":"IFERROR(Saraksts[DAUDZ.]*Saraksts[VIENĪBAS CENA],\"\")","v":{"v":54.95,"d":"54.95 EUR"}}]

{"sheet":"aprēķini","index":1,"n_rows":21,"n_cols":13,"rows_kept":21}
["*** Šī lapa paliek neredzama ***"]
[]
[{"$nulls":10},{"$f":"SUM(Saraksts[KOPĀ])-SUM(K6:K9)","v":{"v":0,"d":"0.00 EUR"}},{"$f":"ROUND(K3,0)","v":{"v":0,"d":"0 EUR"}},"CITI KOPĀ"]
[{"$nulls":11},{"$f":"ROUNDUP(SUM(Saraksts[KOPĀ]),0)","v":{"v":271,"d":"271 EUR"}},"PĀRTIKAS PRECES KOPĀ"]
[]
[{"$nulls":4},{"$f":"IFERROR(INDEX(Saraksts[KATEGORIJA],MATCH(,COUNTIF($E$5:E5,Saraksts[KATEGORIJA]),)),\"\")","v":"Produkti"},{"$f":"SUMIFS(Saraksts[KOPĀ],Saraksts[KATEGORIJA],E6)","v":44.875},{"$f":"F6+ROW()/1000000","v":44.875006},{"$f":"LARGE($G$6:$G$21,1)","v":108.890009},{"$f":"MATCH(H6,$G$6:$G$21,0)","v":4},{"$f":"INDEX($E$6:$E$21,$I6)","v":"Jūras veltes"},{"$f":"INDEX($F$6:$F$21,$I6)","v":{"v":108.89,"d":"108.89 EUR"}},{"$f":"ROUND(K6,0)","v":{"v":109,"d":"109 EUR"}},{"$f":"UPPER(J6) & \" KOPĀ\"","v":"JŪRAS VELTES KOPĀ"}]
[{"$nulls":4},{"$f":"IFERROR(INDEX(Saraksts[KATEGORIJA],MATCH(,COUNTIF($E$5:E6,Saraksts[KATEGORIJA]),)),\"\")","v":"Piena produkti"},{"$f":"SUMIFS(Saraksts[KOPĀ],Saraksts[KATEGORIJA],E7)","v":36.84},{"$f":"F7+ROW()/1000000","v":36.840007},{"$f":"LARGE($G$6:$G$21,2)","v":79.900008},{"$f":"MATCH(H7,$G$6:$G$21,0)","v":3},{"$f":"INDEX($E$6:$E$21,$I7)","v":"Gaļa"},{"$f":"INDEX($F$6:$F$21,$I7)","v":{"v":79.9,"d":"79.90 EUR"}},{"$f":"ROUND(K7,0)","v":{"v":80,"d":"80 EUR"}},{"$f":"UPPER(J7) & \" KOPĀ\"","v":"GAĻA KOPĀ"}]
[{"$nulls":4},{"$f":"IFERROR(INDEX(Saraksts[KATEGORIJA],MATCH(,COUNTIF($E$5:E7,Saraksts[KATEGORIJA]),)),\"\")","v":"Gaļa"},{"$f":"SUMIFS(Saraksts[KOPĀ],Saraksts[KATEGORIJA],E8)","v":79.9},79.900008,{"$f":"LARGE($G$6:$G$21,3)","v":44.875006},{"$f":"MATCH(H8,$G$6:$G$21,0)","v":1},{"$f":"INDEX($E$6:$E$21,$I8)","v":"Produkti"},{"$f":"INDEX($F$6:$F$21,$I8)","v":{"v":44.875,"d":"44.88 EUR"}},{"$f":"ROUND(K8,0)","v":{"v":45,"d":"45 EUR"}},{"$f":"UPPER(J8) & \" KOPĀ\"","v":"PRODUKTI KOPĀ"}]
[{"$nulls":4},{"$f":"IFERROR(INDEX(Saraksts[KATEGORIJA],MATCH(,COUNTIF($E$5:E8,Saraksts[KATEGORIJA]),)),\"\")","v":"Jūras veltes"},{"$f":"SUMIFS(Saraksts[KOPĀ],Saraksts[KATEGORIJA],E9)","v":108.89},108.890009,{"$f":"LARGE($G$6:$G$21,4)","v":36.840007},{"$f":"MATCH(H9,$G$6:$G$21,0)","v":2},{"$f":"INDEX($E$6:$E$21,$I9)","v":"Piena produkti"},{"$f":"INDEX($F$6:$F$21,$I9)","v":{"v":36.84,"d":"36.84 EUR"}},{"$f":"ROUND(K9,0)","v":{"v":37,"d":"37 EUR"}},{"$f":"UPPER(J9) & \" KOPĀ\"","v":"PIENA PRODUKTI KOPĀ"}]
[{"$nulls":4},{"$f":"IFERROR(INDEX(Saraksts[KATEGORIJA],MATCH(,COUNTIF($E$5:E9,Saraksts[KATEGORIJA]),)),\"\")","v":""},{"$f":"SUMIFS(Saraksts[KOPĀ],Saraksts[KATEGORIJA],E10)","v":0},1e-05]
[{"$nulls":4},{"$f":"IFERROR(INDEX(Saraksts[KATEGORIJA],MATCH(,COUNTIF($E$5:E10,Saraksts[KATEGORIJA]),)),\"\")","v":""},{"$f":"SUMIFS(Saraksts[KOPĀ],Saraksts[KATEGORIJA],E11)","v":0},1.1E-5]
[{"$nulls":4},{"$f":"IFERROR(INDEX(Saraksts[KATEGORIJA],MATCH(,COUNTIF($E$5:E11,Saraksts[KATEGORIJA]),)),\"\")","v":""},{"$f":"SUMIFS(Saraksts[KOPĀ],Saraksts[KATEGORIJA],E12)","v":0},1.2E-5]
[{"$nulls":4},{"$f":"IFERROR(INDEX(Saraksts[KATEGORIJA],MATCH(,COUNTIF($E$5:E12,Saraksts[KATEGORIJA]),)),\"\")","v":""},{"$f":"SUMIFS(Saraksts[KOPĀ],Saraksts[KATEGORIJA],E13)","v":0},1.3e-05]
[{"$nulls":4},{"$f":"IFERROR(INDEX(Saraksts[KATEGORIJA],MATCH(,COUNTIF($E$5:E13,Saraksts[KATEGORIJA]),)),\"\")","v":""},{"$f":"SUMIFS(Saraksts[KOPĀ],Saraksts[KATEGORIJA],E14)","v":0},1.4E-5]
[{"$nulls":4},{"$f":"IFERROR(INDEX(Saraksts[KATEGORIJA],MATCH(,COUNTIF($E$5:E14,Saraksts[KATEGORIJA]),)),\"\")","v":""},{"$f":"SUMIFS(Saraksts[KOPĀ],Saraksts[KATEGORIJA],E15)","v":0},1.5E-5]
[{"$nulls":4},{"$f":"IFERROR(INDEX(Saraksts[KATEGORIJA],MATCH(,COUNTIF($E$5:E15,Saraksts[KATEGORIJA]),)),\"\")","v":""},{"$f":"SUMIFS(Saraksts[KOPĀ],Saraksts[KATEGORIJA],E16)","v":0},1.6e-05]
[{"$nulls":4},{"$f":"IFERROR(INDEX(Saraksts[KATEGORIJA],MATCH(,COUNTIF($E$5:E16,Saraksts[KATEGORIJA]),)),\"\")","v":""},{"$f":"SUMIFS(Saraksts[KOPĀ],Saraksts[KATEGORIJA],E17)","v":0},1.7E-5]
[{"$nulls":4},{"$f":"IFERROR(INDEX(Saraksts[KATEGORIJA],MATCH(,COUNTIF($E$5:E17,Saraksts[KATEGORIJA]),)),\"\")","v":""},{"$f":"SUMIFS(Saraksts[KOPĀ],Saraksts[KATEGORIJA],E18)","v":0},1.8E-5]
[{"$nulls":4},{"$f":"IFERROR(INDEX(Saraksts[KATEGORIJA],MATCH(,COUNTIF($E$5:E18,Saraksts[KATEGORIJA]),)),\"\")","v":""},{"$f":"SUMIFS(Saraksts[KOPĀ],Saraksts[KATEGORIJA],E19)","v":0},1.9e-05]
[{"$nulls":4},{"$f":"IFERROR(INDEX(Saraksts[KATEGORIJA],MATCH(,COUNTIF($E$5:E19,Saraksts[KATEGORIJA]),)),\"\")","v":""},{"$f":"SUMIFS(Saraksts[KOPĀ],Saraksts[KATEGORIJA],E20)","v":0},2e-05]
[{"$nulls":4},{"$f":"IFERROR(INDEX(Saraksts[KATEGORIJA],MATCH(,COUNTIF($E$5:E20,Saraksts[KATEGORIJA]),)),\"\")","v":""},{"$f":"SUMIFS(Saraksts[KOPĀ],Saraksts[KATEGORIJA],E21)","v":0},2.1e-05]